[Event "*** Titled Tuesday Blitz"]
[Site "Chess.com"]
[Date "2019.01.01"]
[Round "9"]
[White "Grandelicious"]
[Black "DanielNaroditsky"]
[Result "0-1"]
[WhiteElo "2710"]
[BlackElo "2921"]
[TimeControl "180+2"]
[EndTime "15:08:42 PST"]
[Termination "DanielNaroditsky won by resignation"]

1. e4 {[%clk 0:03:01.9]} 1... g6 {[%clk 0:03:00.7]} 2. d4 {[%clk 0:03:01.6]}
2... Bg7 {[%clk 0:03:02.6]} 3. c4 {[%clk 0:03:00.6]} 3... d6 {[%clk 0:03:03]} 4.
Nc3 {[%clk 0:03:01.7]} 4... Nf6 {[%clk 0:03:04.7]} 5. h3 {[%clk 0:03:01.6]} 5...
O-O {[%clk 0:03:05.9]} 6. Be3 {[%clk 0:03:03.2]} 6... e5 {[%clk 0:03:07.2]} 7.
d5 {[%clk 0:03:01.9]} 7... a5 {[%clk 0:03:08.5]} 8. g4 {[%clk 0:03:00.8]} 8...
Na6 {[%clk 0:03:10.1]} 9. Nge2 {[%clk 0:03:02.1]} 9... Nc5 {[%clk 0:03:11.6]}
10. Ng3 {[%clk 0:03:03.5]} 10... c6 {[%clk 0:03:12.1]} 11. f3 {[%clk 0:02:57.7]}
11... a4 {[%clk 0:03:13]} 12. Qd2 {[%clk 0:02:53.2]} 12... Qa5 {[%clk
0:03:13.9]} 13. h4 {[%clk 0:02:51]} 13... cxd5 {[%clk 0:03:05.2]} 14. cxd5
{[%clk 0:02:44.2]} 14... Bd7 {[%clk 0:03:06.1]} 15. h5 {[%clk 0:02:45.1]} 15...
a3 {[%clk 0:03:05.8]} 16. b3 {[%clk 0:02:35.5]} 16... Rfc8 {[%clk 0:03:06]} 17.
Nd1 {[%clk 0:01:58.2]} 17... Qxd2+ {[%clk 0:02:26.1]} 18. Bxd2 {[%clk
0:02:00.1]} 18... Ne8 {[%clk 0:02:25]} 19. Ne3 {[%clk 0:01:58.3]} 19... b5
{[%clk 0:02:01.8]} 20. g5 {[%clk 0:01:51.5]} 20... Bf8 {[%clk 0:01:38.2]} 21.
hxg6 {[%clk 0:01:50.8]} 21... fxg6 {[%clk 0:01:38]} 22. Ng4 {[%clk 0:01:16.3]}
22... Be7 {[%clk 0:01:20.5]} 23. Be2 {[%clk 0:01:08.8]} 23... Na6 {[%clk
0:01:00.9]} 24. Bd3 {[%clk 0:00:45.9]} 24... Bd8 {[%clk 0:00:57]} 25. Nh6+
{[%clk 0:00:35.4]} 25... Kg7 {[%clk 0:00:57.4]} 26. Nhf5+ {[%clk 0:00:35.2]}
26... gxf5 {[%clk 0:00:55.9]} 27. exf5 {[%clk 0:00:37.1]} 27... Nc5 {[%clk
0:00:39.6]} 28. f6+ {[%clk 0:00:38.4]} 28... Bxf6 {[%clk 0:00:40.5]} 29. gxf6+
{[%clk 0:00:21.7]} 29... Nxf6 {[%clk 0:00:42.4]} 30. Bf5 {[%clk 0:00:21.1]}
30... Kf7 {[%clk 0:00:31.3]} 31. Bxd7 {[%clk 0:00:17.5]} 31... Ncxd7 {[%clk
0:00:33.2]} 32. Nf5 {[%clk 0:00:18.6]} 32... Ra6 {[%clk 0:00:34.9]} 33. Ke2
{[%clk 0:00:17]} 33... Nf8 {[%clk 0:00:30.2]} 34. Rag1 {[%clk 0:00:15.9]} 34...
Ng6 {[%clk 0:00:31.1]} 35. Bg5 {[%clk 0:00:14.4]} 35... Rc2+ {[%clk 0:00:22.4]}
36. Kd3 {[%clk 0:00:15.6]} 36... Rxa2 {[%clk 0:00:23.1]} 37. Bxf6 {[%clk
0:00:16.3]} 37... Kxf6 {[%clk 0:00:18.3]} 38. Ne3 {[%clk 0:00:17.2]} 38... Ra7
{[%clk 0:00:11.6]} 39. Rh5 {[%clk 0:00:13]} 39... Nf4+ {[%clk 0:00:11.9]} 0-1

[Event "*** Titled Tuesday Blitz"]
[Site "Chess.com"]
[Date "2019.01.01"]
[Round "9"]
[White "Martins-BR"]
[Black "WPWPWP-2015"]
[Result "0-1"]
[WhiteElo "2211"]
[BlackElo "2318"]
[TimeControl "180+2"]
[EndTime "15:08:43 PST"]
[Termination "WPWPWP-2015 won by resignation"]

1. e4 {[%clk 0:03:01.9]} 1... c5 {[%clk 0:02:59.8]} 2. Nf3 {[%clk 0:03:02.6]}
2... d6 {[%clk 0:03:00.3]} 3. d4 {[%clk 0:03:03]} 3... cxd4 {[%clk 0:03:00.7]}
4. Nxd4 {[%clk 0:03:04.9]} 4... Nf6 {[%clk 0:03:01.3]} 5. Nc3 {[%clk 0:03:05.9]}
5... a6 {[%clk 0:03:01.8]} 6. Bg5 {[%clk 0:03:06.6]} 6... e6 {[%clk 0:03:02.1]}
7. f4 {[%clk 0:03:07.5]} 7... h6 {[%clk 0:03:02.8]} 8. Bh4 {[%clk 0:03:07.4]}
8... Qb6 {[%clk 0:03:03.2]} 9. a3 {[%clk 0:03:03.1]} 9... Nc6 {[%clk 0:03:01]}
10. Bf2 {[%clk 0:03:03]} 10... Qc7 {[%clk 0:03:00]} 11. Qf3 {[%clk 0:02:46.2]}
11... e5 {[%clk 0:02:56.6]} 12. Nf5 {[%clk 0:02:27]} 12... Bxf5 {[%clk
0:02:42.7]} 13. exf5 {[%clk 0:02:24.2]} 13... e4 {[%clk 0:02:42.5]} 14. Nxe4
{[%clk 0:02:15.6]} 14... Qe7 {[%clk 0:02:40.6]} 15. Bd3 {[%clk 0:02:10.5]} 15...
d5 {[%clk 0:02:38.5]} 16. Qe2 {[%clk 0:01:49.5]} 16... Nxe4 {[%clk 0:02:25.6]}
17. O-O-O {[%clk 0:01:46.3]} 17... Nxf2 {[%clk 0:02:18.4]} 18. Qxf2 {[%clk
0:01:45.7]} 18... O-O-O {[%clk 0:02:17.1]} 19. Rhe1 {[%clk 0:01:38.8]} 19... Qc5
{[%clk 0:02:17.1]} 20. Qg3 {[%clk 0:01:29.4]} 20... Kb8 {[%clk 0:01:47.5]} 21.
Kb1 {[%clk 0:01:16.2]} 21... Qb6 {[%clk 0:01:43.3]} 22. f6 {[%clk 0:01:09.5]}
22... gxf6 {[%clk 0:01:38.4]} 23. f5+ {[%clk 0:01:04.9]} 23... Bd6 {[%clk
0:01:38.7]} 24. Qg7 {[%clk 0:00:45.7]} 24... Be5 {[%clk 0:01:38.6]} 25. b3
{[%clk 0:00:45.5]} 25... Qd4 {[%clk 0:01:10]} 26. Rxe5 {[%clk 0:00:42.7]} 26...
Qxe5 {[%clk 0:01:04]} 27. Qxf7 {[%clk 0:00:42.1]} 27... Rhf8 {[%clk 0:00:50.5]}
28. Qh5 {[%clk 0:00:41.3]} 28... Rg8 {[%clk 0:00:44.4]} 29. g3 {[%clk
0:00:41.3]} 29... Qe3 {[%clk 0:00:40]} 30. Rf1 {[%clk 0:00:27.4]} 30... Ne5
{[%clk 0:00:37.8]} 31. Rd1 {[%clk 0:00:19.5]} 31... Nxd3 {[%clk 0:00:35.3]} 32.
Rxd3 {[%clk 0:00:19.3]} 32... Qe1+ {[%clk 0:00:34.9]} 33. Kb2 {[%clk 0:00:19.5]}
33... Qe5+ {[%clk 0:00:34.3]} 34. Kb1 {[%clk 0:00:19.1]} 34... Rg5 {[%clk
0:00:26.8]} 35. Qxh6 {[%clk 0:00:19.1]} 35... Rxf5 {[%clk 0:00:27.6]} 36. Qc1
{[%clk 0:00:17.3]} 36... d4 {[%clk 0:00:25.5]} 37. Qd1 {[%clk 0:00:12.3]} 37...
Rf2 {[%clk 0:00:20.9]} 38. Kb2 {[%clk 0:00:12.7]} 38... Rc8 {[%clk 0:00:19.7]}
0-1

[Event "*** Titled Tuesday Blitz"]
[Site "Chess.com"]
[Date "2019.01.01"]
[Round "9"]
[White "essequamvideris"]
[Black "mouseWLZ"]
[Result "1-0"]
[WhiteElo "2443"]
[BlackElo "2397"]
[TimeControl "180+2"]
[EndTime "15:08:45 PST"]
[Termination "essequamvideris won by resignation"]

1. Nf3 {[%clk 0:03:01.9]} 1... e6 {[%clk 0:02:59.4]} 2. g3 {[%clk 0:03:00.4]}
2... Nf6 {[%clk 0:03:00.6]} 3. Bg2 {[%clk 0:03:02]} 3... d5 {[%clk 0:03:02]} 4.
O-O {[%clk 0:03:03.7]} 4... c5 {[%clk 0:03:03.2]} 5. c4 {[%clk 0:03:05.1]} 5...
d4 {[%clk 0:03:03.8]} 6. b4 {[%clk 0:03:03.3]} 6... cxb4 {[%clk 0:03:03.4]} 7.
d3 {[%clk 0:03:04.2]} 7... Nc6 {[%clk 0:03:04]} 8. a3 {[%clk 0:03:04.4]} 8... h6
{[%clk 0:03:00.4]} 9. axb4 {[%clk 0:02:55.2]} 9... Bxb4 {[%clk 0:03:01.4]} 10.
Qa4 {[%clk 0:02:56.4]} 10... O-O {[%clk 0:02:59.2]} 11. Ne5 {[%clk 0:02:57.6]}
11... Nxe5 {[%clk 0:02:56.1]} 12. Qxb4 {[%clk 0:02:57.4]} 12... Nc6 {[%clk
0:02:53]} 13. Bxc6 {[%clk 0:02:55.7]} 13... bxc6 {[%clk 0:02:52.1]} 14. Qc5
{[%clk 0:02:55.9]} 14... Bb7 {[%clk 0:02:41.2]} 15. Rxa7 {[%clk 0:02:42]} 15...
Rxa7 {[%clk 0:02:34.8]} 16. Qxa7 {[%clk 0:02:43.9]} 16... Qd7 {[%clk 0:02:31.7]}
17. Nd2 {[%clk 0:02:39.5]} 17... e5 {[%clk 0:02:27.8]} 18. Ba3 {[%clk
0:02:32.6]} 18... Ra8 {[%clk 0:02:27.1]} 19. Qc5 {[%clk 0:02:33.8]} 19... Qg4
{[%clk 0:01:37.4]} 20. Re1 {[%clk 0:02:05.3]} 20... Nd7 {[%clk 0:01:28.5]} 21.
Qd6 {[%clk 0:02:03.7]} 21... c5 {[%clk 0:01:11.7]} 22. Bxc5 {[%clk 0:02:01.7]}
22... Ra2 {[%clk 0:01:05]} 23. f3 {[%clk 0:01:58.9]} 23... Qg5 {[%clk
0:00:35.5]} 24. Qxd7 {[%clk 0:01:53.6]} 24... Qxd2 {[%clk 0:00:36.1]} 25. Kf1
{[%clk 0:01:49.5]} 25... Ba8 {[%clk 0:00:08.3]} 26. Qe8+ {[%clk 0:01:46.3]}
26... Kh7 {[%clk 0:00:09.5]} 27. Qxe5 {[%clk 0:01:46.2]} 27... Qg5 {[%clk
0:00:04.2]} 28. Qxg5 {[%clk 0:01:43.3]} 28... hxg5 {[%clk 0:00:06.1]} 29. Bxd4
{[%clk 0:01:44.3]} 29... f5 {[%clk 0:00:07]} 30. Rb1 {[%clk 0:01:41.7]} 30... g4
{[%clk 0:00:06.6]} 31. fxg4 {[%clk 0:01:39.6]} 31... fxg4 {[%clk 0:00:08.5]} 32.
Rb8 {[%clk 0:01:38]} 32... Kg6 {[%clk 0:00:06]} 33. Rg8 {[%clk 0:01:33.4]} 33...
Kf5 {[%clk 0:00:07.3]} 34. Rxg7 {[%clk 0:01:32.4]} 34... Bh1 {[%clk 0:00:08.4]}
35. Kf2 {[%clk 0:01:26.9]} 35... Bf3 {[%clk 0:00:08.5]} 36. Re7 {[%clk
0:01:24.8]} 36... Rc2 {[%clk 0:00:08.7]} 37. c5 {[%clk 0:01:20.7]} 37... Kg6
{[%clk 0:00:06.4]} 38. Re6+ {[%clk 0:01:17.5]} 38... Kf7 {[%clk 0:00:06.7]} 39.
Re5 {[%clk 0:01:17.6]} 39... Kg6 {[%clk 0:00:06.5]} 40. Kf1 {[%clk 0:01:09.5]}
40... Rc1+ {[%clk 0:00:06.6]} 41. Kf2 {[%clk 0:01:09.8]} 41... Rc2 {[%clk
0:00:08]} 42. h4 {[%clk 0:01:05.4]} 42... gxh3 {[%clk 0:00:07.2]} 43. Kxf3
{[%clk 0:01:04.5]} 43... h2 {[%clk 0:00:08.6]} 44. Re6+ {[%clk 0:00:53.9]} 44...
Kh7 {[%clk 0:00:08.9]} 45. Kg2 {[%clk 0:00:48.3]} 1-0

[Event "*** Titled Tuesday Blitz"]
[Site "Chess.com"]
[Date "2019.01.01"]
[Round "9"]
[White "MateSchmate"]
[Black "dolynachess"]
[Result "1-0"]
[WhiteElo "2476"]
[BlackElo "2372"]
[TimeControl "180+2"]
[EndTime "15:08:56 PST"]
[Termination "MateSchmate won by resignation"]

1. e4 {[%clk 0:03:01.9]} 1... d5 {[%clk 0:02:59]} 2. exd5 {[%clk 0:03:02.3]}
2... Qxd5 {[%clk 0:03:00.9]} 3. Nc3 {[%clk 0:03:03.9]} 3... Qd8 {[%clk
0:03:01.9]} 4. g3 {[%clk 0:03:05.2]} 4... e5 {[%clk 0:03:01.6]} 5. Bg2 {[%clk
0:03:06.5]} 5... Nf6 {[%clk 0:03:02.1]} 6. Nge2 {[%clk 0:03:07.9]} 6... Bc5
{[%clk 0:03:02.6]} 7. O-O {[%clk 0:03:09]} 7... O-O {[%clk 0:03:04.1]} 8. d3
{[%clk 0:03:09.7]} 8... h6 {[%clk 0:03:05]} 9. Be3 {[%clk 0:03:01.3]} 9... Bb6
{[%clk 0:03:05.7]} 10. a4 {[%clk 0:03:01.4]} 10... Nc6 {[%clk 0:03:03.9]} 11. h3
{[%clk 0:02:54.1]} 11... Re8 {[%clk 0:02:59.8]} 12. Bxb6 {[%clk 0:02:51.6]}
12... axb6 {[%clk 0:03:00.3]} 13. Kh2 {[%clk 0:02:49.6]} 13... Be6 {[%clk
0:02:57]} 14. f4 {[%clk 0:02:50]} 14... exf4 {[%clk 0:02:45]} 15. Nxf4 {[%clk
0:02:50.9]} 15... Qd6 {[%clk 0:02:44.1]} 16. Nxe6 {[%clk 0:02:50.4]} 16... Rxe6
{[%clk 0:02:44.4]} 17. Qf3 {[%clk 0:02:48]} 17... Rae8 {[%clk 0:02:42.9]} 18.
Qf2 {[%clk 0:02:45.9]} 18... Qd4 {[%clk 0:02:21.9]} 19. Bxc6 {[%clk 0:02:32.7]}
19... Qxf2+ {[%clk 0:02:21.5]} 20. Rxf2 {[%clk 0:02:34.3]} 20... Rxc6 {[%clk
0:02:22.6]} 21. g4 {[%clk 0:02:28.8]} 21... Re5 {[%clk 0:02:13.1]} 22. Rd1
{[%clk 0:02:26.6]} 22... Re3 {[%clk 0:02:00.5]} 23. Rdd2 {[%clk 0:02:24.6]}
23... Rce6 {[%clk 0:01:58.4]} 24. Rde2 {[%clk 0:02:25.6]} 24... Kf8 {[%clk
0:01:57.8]} 25. Rxe3 {[%clk 0:02:25.5]} 25... Rxe3 {[%clk 0:01:58.9]} 26. Re2
{[%clk 0:02:27.4]} 26... Rxe2+ {[%clk 0:01:59.5]} 27. Nxe2 {[%clk 0:02:29.3]}
27... Ke7 {[%clk 0:01:54.4]} 28. Kg3 {[%clk 0:02:29.4]} 28... Nd5 {[%clk
0:01:54.2]} 29. Nd4 {[%clk 0:02:25.8]} 29... g6 {[%clk 0:01:52.5]} 30. c3 {[%clk
0:02:22.4]} 30... c6 {[%clk 0:01:49]} 31. Kf3 {[%clk 0:02:23.3]} 31... Kd6
{[%clk 0:01:47]} 32. Ke4 {[%clk 0:02:19.5]} 32... Nf6+ {[%clk 0:01:47]} 33. Kf3
{[%clk 0:02:18.3]} 33... Ke5 {[%clk 0:01:43]} 34. Ne2 {[%clk 0:02:17.3]} 34...
Nd5 {[%clk 0:01:40.8]} 35. d4+ {[%clk 0:02:18.1]} 35... Kd6 {[%clk 0:01:40.7]}
36. Ke4 {[%clk 0:02:18.3]} 36... Nf6+ {[%clk 0:01:40.8]} 37. Kd3 {[%clk
0:02:18.8]} 37... Nd5 {[%clk 0:01:34.6]} 38. c4 {[%clk 0:02:18.7]} 38... Ne7
{[%clk 0:01:32.8]} 39. b4 {[%clk 0:02:16.8]} 39... f5 {[%clk 0:01:32]} 40. c5+
{[%clk 0:02:17.8]} 40... bxc5 {[%clk 0:01:31.5]} 41. dxc5+ {[%clk 0:02:19.7]}
41... Ke5 {[%clk 0:01:29.6]} 42. gxf5 {[%clk 0:02:18.9]} 42... Nxf5 {[%clk
0:01:27.1]} 43. Nc3 {[%clk 0:02:18]} 43... Ne7 {[%clk 0:01:09.6]} 44. b5 {[%clk
0:02:01.8]} 44... Nd5 {[%clk 0:00:52]} 45. bxc6 {[%clk 0:01:47.5]} 45... Nb4+
{[%clk 0:00:44.4]} 46. Kc4 {[%clk 0:01:43.8]} 46... Nxc6 {[%clk 0:00:45.8]} 47.
Kb5 {[%clk 0:01:45]} 47... g5 {[%clk 0:00:46.4]} 48. Kb6 {[%clk 0:01:46]} 48...
Kd4 {[%clk 0:00:41.5]} 49. Nb5+ {[%clk 0:01:46.3]} 49... Kc4 {[%clk 0:00:33.1]}
50. Nd6+ {[%clk 0:01:46.5]} 50... Kb4 {[%clk 0:00:34]} 51. Nxb7 {[%clk 0:01:48]}
51... Ne5 {[%clk 0:00:23.7]} 52. a5 {[%clk 0:01:39.6]} 52... Nc4+ {[%clk
0:00:21.4]} 53. Kc6 {[%clk 0:01:35.1]} 53... h5 {[%clk 0:00:08.5]} 54. a6 {[%clk
0:01:34.8]} 54... g4 {[%clk 0:00:09.7]} 55. hxg4 {[%clk 0:01:35.1]} 55... hxg4
{[%clk 0:00:11]} 56. a7 {[%clk 0:01:36.7]} 56... g3 {[%clk 0:00:12.1]} 57. a8=Q
{[%clk 0:01:38]} 57... g2 {[%clk 0:00:13.4]} 58. Qg8 {[%clk 0:01:38]} 58... Ne3
{[%clk 0:00:14.5]} 59. Qg3 {[%clk 0:01:35.9]} 59... Kc4 {[%clk 0:00:14.3]} 60.
Qxe3 {[%clk 0:01:36.1]} 1-0

[Event "*** Titled Tuesday Blitz"]
[Site "Chess.com"]
[Date "2019.01.01"]
[Round "9"]
[White "GeorgMeier"]
[Black "champ2005"]
[Result "1-0"]
[WhiteElo "2825"]
[BlackElo "2653"]
[TimeControl "180+2"]
[EndTime "15:09:01 PST"]
[Termination "GeorgMeier won by resignation"]

1. Nf3 {[%clk 0:03:01.9]} 1... d5 {[%clk 0:02:58.7]} 2. g3 {[%clk 0:03:03.3]}
2... Nf6 {[%clk 0:02:57]} 3. Bg2 {[%clk 0:03:04.7]} 3... c6 {[%clk 0:02:58.2]}
4. O-O {[%clk 0:03:05.9]} 4... Bg4 {[%clk 0:02:59]} 5. h3 {[%clk 0:03:07.4]}
5... Bxf3 {[%clk 0:02:57.3]} 6. Bxf3 {[%clk 0:03:09.3]} 6... Nbd7 {[%clk
0:02:58.3]} 7. d3 {[%clk 0:03:10.9]} 7... e5 {[%clk 0:02:59]} 8. e4 {[%clk
0:03:11.3]} 8... dxe4 {[%clk 0:02:57.9]} 9. dxe4 {[%clk 0:03:13.2]} 9... Nc5
{[%clk 0:02:57.2]} 10. Qe2 {[%clk 0:03:12.2]} 10... Ne6 {[%clk 0:02:57.6]} 11.
c3 {[%clk 0:03:11.8]} 11... Be7 {[%clk 0:02:56.1]} 12. Nd2 {[%clk 0:03:06]}
12... O-O {[%clk 0:02:52.1]} 13. Nb3 {[%clk 0:02:48.1]} 13... Qc7 {[%clk
0:02:44.9]} 14. Be3 {[%clk 0:02:48.6]} 14... Nd7 {[%clk 0:02:30.9]} 15. Bg4
{[%clk 0:02:48.3]} 15... Ndc5 {[%clk 0:02:28.3]} 16. Rfd1 {[%clk 0:02:29.1]}
16... Rad8 {[%clk 0:01:50.5]} 17. h4 {[%clk 0:02:27.8]} 17... b5 {[%clk
0:01:43.1]} 18. Bxe6 {[%clk 0:02:03]} 18... Nxe6 {[%clk 0:01:40.7]} 19. a4
{[%clk 0:02:04.1]} 19... Rxd1+ {[%clk 0:01:28.3]} 20. Qxd1 {[%clk 0:02:04.4]}
20... b4 {[%clk 0:01:15]} 21. Qe2 {[%clk 0:01:54.7]} 21... bxc3 {[%clk
0:01:14.7]} 22. bxc3 {[%clk 0:01:55.3]} 22... Rb8 {[%clk 0:00:59.1]} 23. Qc4
{[%clk 0:01:54]} 23... h5 {[%clk 0:00:58]} 24. Rd1 {[%clk 0:01:24.9]} 24... g6
{[%clk 0:00:57]} 25. a5 {[%clk 0:01:18.1]} 25... Qb7 {[%clk 0:00:52.7]} 26. Nd2
{[%clk 0:01:03.5]} 26... a6 {[%clk 0:00:35.9]} 27. Bb6 {[%clk 0:00:56.5]} 27...
Bd8 {[%clk 0:00:36]} 28. Rb1 {[%clk 0:00:42.8]} 28... Qc8 {[%clk 0:00:22.9]} 29.
Nf3 {[%clk 0:00:41.1]} 29... Bf6 {[%clk 0:00:22.4]} 30. Rd1 {[%clk 0:00:38]}
30... Qb7 {[%clk 0:00:20.1]} 31. Rd6 {[%clk 0:00:35.1]} 31... Rc8 {[%clk
0:00:20.9]} 32. Qd3 {[%clk 0:00:34.6]} 32... c5 {[%clk 0:00:17.4]} 33. Qd5
{[%clk 0:00:27.7]} 33... Qe7 {[%clk 0:00:14.6]} 34. Nxe5 {[%clk 0:00:18.1]}
34... Nc7 {[%clk 0:00:15.2]} 35. Bxc7 {[%clk 0:00:18.6]} 35... Bxe5 {[%clk
0:00:14.5]} 36. Rd7 {[%clk 0:00:13.9]} 36... Qxd7 {[%clk 0:00:15.3]} 37. Qxd7
{[%clk 0:00:14.9]} 37... Rxc7 {[%clk 0:00:16.5]} 38. Qe8+ {[%clk 0:00:16.1]} 1-0

[Event "*** Titled Tuesday Blitz"]
[Site "Chess.com"]
[Date "2019.01.01"]
[Round "9"]
[White "Mikhail_Golubev"]
[Black "PulpanJ"]
[Result "1-0"]
[WhiteElo "2527"]
[BlackElo "2601"]
[TimeControl "180+2"]
[EndTime "15:09:04 PST"]
[Termination "Mikhail_Golubev won by resignation"]

1. e4 {[%clk 0:03:01.9]} 1... c6 {[%clk 0:02:51.5]} 2. d4 {[%clk 0:03:01.6]}
2... d5 {[%clk 0:02:53.4]} 3. Nc3 {[%clk 0:03:02.1]} 3... dxe4 {[%clk
0:02:49.1]} 4. Nxe4 {[%clk 0:03:02.7]} 4... Nf6 {[%clk 0:02:48.6]} 5. Nxf6+
{[%clk 0:03:02.2]} 5... exf6 {[%clk 0:02:50.5]} 6. Bf4 {[%clk 0:02:48.2]} 6...
Bd6 {[%clk 0:02:42.6]} 7. Qd2 {[%clk 0:02:39.6]} 7... O-O {[%clk 0:02:41.5]} 8.
O-O-O {[%clk 0:02:39.7]} 8... Be6 {[%clk 0:02:39.9]} 9. a3 {[%clk 0:02:26.5]}
9... Bxf4 {[%clk 0:02:35.3]} 10. Qxf4 {[%clk 0:02:26]} 10... Qd5 {[%clk
0:02:37.2]} 11. c4 {[%clk 0:01:59.3]} 11... Qa5 {[%clk 0:02:23.3]} 12. Bd3
{[%clk 0:01:33.4]} 12... Nd7 {[%clk 0:02:15.3]} 13. Qd2 {[%clk 0:00:59.8]} 13...
Qc7 {[%clk 0:01:53.2]} 14. Ne2 {[%clk 0:01:00.4]} 14... Nb6 {[%clk 0:01:47.4]}
15. Qc2 {[%clk 0:00:57.2]} 15... h6 {[%clk 0:01:43.6]} 16. h3 {[%clk 0:00:32.5]}
16... Rfe8 {[%clk 0:01:43.6]} 17. Rhe1 {[%clk 0:00:28.6]} 17... Qh2 {[%clk
0:01:32.6]} 18. Rg1 {[%clk 0:00:27.2]} 18... Rad8 {[%clk 0:01:23.8]} 19. Ng3
{[%clk 0:00:24]} 19... f5 {[%clk 0:00:56.1]} 20. d5 {[%clk 0:00:19.2]} 20...
cxd5 {[%clk 0:00:55.1]} 21. c5 {[%clk 0:00:20.3]} 21... f4 {[%clk 0:00:38.5]}
22. Rh1 {[%clk 0:00:16.6]} 22... Qxg2 {[%clk 0:00:32.8]} 23. Nh5 {[%clk
0:00:16.3]} 23... Qg5 {[%clk 0:00:31.3]} 24. Nxg7 {[%clk 0:00:16.5]} 24... Bxh3
{[%clk 0:00:12.1]} 25. Nxe8 {[%clk 0:00:15.2]} 25... Rxe8 {[%clk 0:00:11.1]} 26.
cxb6 {[%clk 0:00:14.1]} 26... axb6 {[%clk 0:00:05]} 27. Rdg1 {[%clk 0:00:13]}
27... Bg2 {[%clk 0:00:06.4]} 28. f3 {[%clk 0:00:13]} 28... Bxh1 {[%clk
0:00:03.9]} 29. Rxg5+ {[%clk 0:00:12.8]} 29... hxg5 {[%clk 0:00:05.8]} 30. Qf2
{[%clk 0:00:12]} 30... Re3 {[%clk 0:00:06.3]} 31. Be2 {[%clk 0:00:11.5]} 31...
d4 {[%clk 0:00:05.5]} 32. Qf1 {[%clk 0:00:10.4]} 32... d3 {[%clk 0:00:03.3]} 33.
Bd1 {[%clk 0:00:10.1]} 33... g4 {[%clk 0:00:02.6]} 34. Qxh1 {[%clk 0:00:09.9]}
34... g3 {[%clk 0:00:04.2]} 35. Qh4 {[%clk 0:00:09.6]} 35... Kf8 {[%clk
0:00:03]} 36. Qxf4 {[%clk 0:00:08.7]} 36... Re6 {[%clk 0:00:02.9]} 37. Qxg3
{[%clk 0:00:09.1]} 37... Rc6+ {[%clk 0:00:04.8]} 38. Kd2 {[%clk 0:00:09.3]}
38... Rc2+ {[%clk 0:00:05.7]} 39. Bxc2 {[%clk 0:00:09.8]} 39... Ke7 {[%clk
0:00:07.6]} 40. Bxd3 {[%clk 0:00:10.4]} 40... Ke6 {[%clk 0:00:09.5]} 41. Qg4+
{[%clk 0:00:11.2]} 1-0

[Event "*** Titled Tuesday Blitz"]
[Site "Chess.com"]
[Date "2019.01.01"]
[Round "9"]
[White "Makalexa"]
[Black "Andrew-FB00"]
[Result "1-0"]
[WhiteElo "2140"]
[BlackElo "1811"]
[TimeControl "180+2"]
[EndTime "15:09:08 PST"]
[Termination "Makalexa won on time"]

1. e4 {[%clk 0:03:01.9]} 1... e5 {[%clk 0:02:59.3]} 2. Nf3 {[%clk 0:03:01.8]}
2... Nc6 {[%clk 0:02:58.9]} 3. Bc4 {[%clk 0:03:02.6]} 3... Bc5 {[%clk
0:02:58.8]} 4. O-O {[%clk 0:03:01.9]} 4... d6 {[%clk 0:02:52.1]} 5. d3 {[%clk
0:03:02.4]} 5... Nf6 {[%clk 0:02:51]} 6. b4 {[%clk 0:03:00.3]} 6... Bxb4 {[%clk
0:02:48.5]} 7. c3 {[%clk 0:03:01.4]} 7... Ba5 {[%clk 0:02:47.8]} 8. d4 {[%clk
0:03:02.1]} 8... Bg4 {[%clk 0:02:42.5]} 9. d5 {[%clk 0:03:02.1]} 9... Ne7 {[%clk
0:02:37.9]} 10. h3 {[%clk 0:02:54.4]} 10... Bxf3 {[%clk 0:02:37.5]} 11. Qxf3
{[%clk 0:02:54.7]} 11... O-O {[%clk 0:02:36.2]} 12. h4 {[%clk 0:02:50.1]} 12...
Qd7 {[%clk 0:02:20]} 13. Bg5 {[%clk 0:02:48.6]} 13... Ng6 {[%clk 0:02:07.4]} 14.
Bxf6 {[%clk 0:02:30]} 14... gxf6 {[%clk 0:02:07.7]} 15. Qxf6 {[%clk 0:02:30.8]}
15... b5 {[%clk 0:02:03]} 16. h5 {[%clk 0:02:28.7]} 16... h6 {[%clk 0:01:26.4]}
17. hxg6 {[%clk 0:02:27.8]} 17... bxc4 {[%clk 0:01:22.7]} 18. g7 {[%clk
0:02:24.7]} 18... Rfe8 {[%clk 0:01:12.3]} 19. Qxh6 {[%clk 0:02:25.3]} 19... f5
{[%clk 0:01:06.8]} 20. Qh8+ {[%clk 0:02:06]} 20... Kf7 {[%clk 0:01:07.1]} 21.
Qh7 {[%clk 0:02:06.9]} 21... Rg8 {[%clk 0:01:00.6]} 22. exf5 {[%clk 0:02:05]}
22... Rxg7 {[%clk 0:00:59.2]} 23. Qh5+ {[%clk 0:02:05.3]} 23... Kf6 {[%clk
0:00:51.3]} 24. Qh4+ {[%clk 0:01:57.6]} 24... Kf7 {[%clk 0:00:49.7]} 25. Qh5+
{[%clk 0:01:46.3]} 25... Kf6 {[%clk 0:00:50]} 26. Qh6+ {[%clk 0:01:47.6]} 26...
Kxf5 {[%clk 0:00:45]} 27. Nd2 {[%clk 0:01:36.6]} 27... Rag8 {[%clk 0:00:29.3]}
28. Qh3+ {[%clk 0:01:23.5]} 28... Kg6 {[%clk 0:00:19.4]} 29. Qxd7 {[%clk
0:01:05]} 29... Rxd7 {[%clk 0:00:18.8]} 30. Nxc4 {[%clk 0:01:06.5]} 30... Bxc3
{[%clk 0:00:18.9]} 31. Rac1 {[%clk 0:01:06.1]} 31... Bd4 {[%clk 0:00:19.2]} 32.
Na5 {[%clk 0:00:56.7]} 32... Kf6 {[%clk 0:00:18.8]} 33. Nc6 {[%clk 0:00:54.8]}
33... Rdg7 {[%clk 0:00:18.8]} 34. Nxd4 {[%clk 0:00:51.1]} 34... Rxg2+ {[%clk
0:00:18.5]} 35. Kh1 {[%clk 0:00:52]} 35... exd4 {[%clk 0:00:15.9]} 36. Rxc7
{[%clk 0:00:38]} 36... R2g5 {[%clk 0:00:07.9]} 37. Rh7 {[%clk 0:00:38.5]} 37...
Rxd5 {[%clk 0:00:08.1]} 38. Rd1 {[%clk 0:00:32.6]} 38... Rg6 {[%clk 0:00:04.3]}
39. Rd3 {[%clk 0:00:29.4]} 39... a5 {[%clk 0:00:03.4]} 40. Rh4 {[%clk
0:00:29.3]} 40... Ke5 {[%clk 0:00:02.3]} 41. f3 {[%clk 0:00:20.8]} 1-0